bitfinex/quotes_ETHUSD_20241123
["timestamp","ask_amount","ask_price","bid_price","bid_amount"]
[1732378125453,0.02887088,3461.2,3459.9,0.2876]
[1732378125660,2.2784814,3460.9,3459.9,0.2876]
[1732378125863,3.0,3461.3,3459.9,0.2876]
[1732378125864,2.2784814,3460.5,3459.9,0.2876]
[1732378126021,0.02887088,3460.4,3459.9,0.2876]
[1732378127344,2.30735228,3460.5,3459.9,0.2876]
[1732378128240,2.2784814,3460.9,3459.9,0.2876]
[1732378128452,0.02887088,3460.8,3459.9,0.2876]
[1732378129060,0.02887088,3460.8,3459.8,0.2876]
[1732378129569,0.02887088,3460.8,3460.0,0.2876]
[1732378130351,2.2784814,3460.9,3460.0,0.2876]
[1732378130746,0.02887088,3460.8,3460.0,0.2876]
[1732378130947,2.30735228,3461.3,3460.2,0.2876]
[1732378131272,0.02887088,3461.4,3460.6,0.2876]
[1732378132135,2.2784814,3461.3,3460.6,0.2876]
[1732378132334,2.2784814,3460.9,3460.6,0.2876]
[1732378132536,0.02887088,3460.8,3460.6,0.2876]
[1732378133251,0.02887088,3460.8,3460.7,0.2876]
[1732378133662,0.02887088,3460.8,3459.8,0.1593]
[1732378133851,2.2784814,3460.2,3459.8,0.1593]
[1732378134046,0.02887088,3460.1,3459.8,0.1593]
[1732378134248,2.2784814,3460.2,3459.9,0.2876]
[1732378135787,0.02887088,3460.1,3459.9,0.2876]
[1732378135988,2.2784814,3460.2,3459.9,0.2876]
[1732378136493,2.2784814,3460.6,3459.9,0.2876]
[1732378136651,0.02887088,3460.5,3459.9,0.2876]
[1732378136852,3.0,3461.0,3459.9,0.2876]
[1732378136853,0.02887088,3460.9,3459.9,0.2876]
[1732378137159,0.02887088,3460.8,3459.9,0.2876]
[1732378137677,5.2784814,3461.0,3460.0,0.4469]
[1732378137678,2.2784814,3461.0,3460.0,0.4469]
[1732378137872,3.0,3461.3,3460.1,0.7093]
[1732378138072,2.30735228,3461.4,3460.4,0.2876]
[1732378139083,2.2784814,3462.2,3461.0,0.2876]
[1732378139391,2.30735228,3462.2,3461.2,0.2876]
[1732378139564,2.30735228,3462.2,3461.4,0.2876]
[1732378139750,2.2784814,3462.2,3461.4,0.2876]
[1732378140152,0.02887088,3462.1,3461.4,0.2876]
[1732378141264,2.2784814,3461.8,3461.4,0.2876]
[1732378141594,0.02887088,3461.7,3461.4,0.2876]
[1732378142859,0.02887088,3461.7,3461.2,0.2876]
[1732378143080,2.2784814,3461.8,3461.2,0.2876]
[1732378143081,2.30735228,3461.8,3461.2,0.2876]
[1732378143279,3.0,3461.9,3461.2,0.2876]
[1732378143487,0.1,3463.2,3460.2,0.02889372]
[1732378143488,2.2784814,3462.7,3461.4,0.2876]
[1732378143661,2.2784814,3462.7,3461.6,0.2876]
[1732378143662,0.02887088,3462.6,3461.6,0.2876]
[1732378143875,0.02887088,3462.6,3461.8,0.2876]
[1732378144970,2.2784814,3462.3,3461.8,0.2876]
[1732378145172,0.02887088,3462.2,3461.8,0.2876]
[1732378145681,2.2784814,3462.3,3461.8,0.2876]
[1732378146116,0.02887088,3462.2,3461.8,0.2876]
[1732378147217,2.30735228,3462.7,3461.8,0.2876]
[1732378147682,2.2784814,3462.7,3461.8,0.2876]
[1732378148006,0.56175336,3463.3,3460.9,0.45780343]
[1732378148007,2.2784814,3463.5,3462.3,0.4469]
[1732378148201,2.2784814,3463.1,3462.3,0.4469]
[1732378148504,0.02887088,3463.0,3462.3,0.4469]
[1732378148711,0.02887088,3463.0,3462.5,0.2876]
[1732378148873,0.02887088,3463.0,3462.7,0.2876]
[1732378149072,0.02887088,3463.0,3462.8,0.21460535]
[1732378149680,0.02887088,3463.0,3462.4,0.2876]
[1732378150377,0.02887088,3463.0,3462.3,0.1593]
[1732378150378,0.02887088,3463.4,3461.6,0.2876]
[1732378150577,0.02887088,3463.4,3462.0,0.8376]
[1732378150784,0.02887088,3463.4,3462.4,0.2876]
[1732378151006,2.2784814,3462.7,3462.4,0.2876]
[1732378151214,0.02887088,3462.6,3462.4,0.2876]
[1732378151373,0.9512,3462.5,3461.5,0.2876]
[1732378151570,2.2784814,3462.2,3461.5,0.2876]
[1732378151911,0.02887088,3462.3,3461.5,0.2876]
[1732378152072,0.02887088,3462.5,3461.7,0.2876]
[1732378152621,5.2784814,3462.2,3461.7,0.2876]
[1732378152903,0.02887088,3462.1,3461.7,0.2876]
[1732378153122,0.02887088,3462.1,3460.3,0.45780343]
[1732378153123,0.02887088,3462.1,3461.3,0.2876]
[1732378153270,2.2784814,3461.8,3461.3,0.2876]
[1732378153465,2.2784814,3461.8,3459.9,0.02889458]
[1732378153466,0.02887088,3461.7,3460.9,0.1593]
[1732378154223,0.02887088,3461.7,3461.0,0.2876]
[1732378156819,3.98007088,3461.7,3461.0,0.2876]
[1732378157370,0.02887088,3461.7,3461.0,0.2876]
[1732378158400,2.2784814,3462.6,3461.1,0.2876]
[1732378158599,2.2784814,3462.6,3461.5,0.2876]
[1732378158904,0.1,3464.0,3460.9,0.45780343]
[1732378158905,2.2784814,3463.4,3462.1,0.2876]
[1732378159091,0.02887088,3463.3,3462.3,0.2876]
[1732378161613,5.30735228,3463.4,3462.3,0.2876]
[1732378161885,2.2784814,3463.8,3462.8,0.2876]
[1732378162093,2.2784814,3464.2,3463.0,0.2876]
[1732378162390,2.2784814,3464.2,3463.1,0.02887304]
[1732378162632,2.2784814,3464.2,3463.0,0.2876]
[1732378163302,0.02887088,3464.1,3463.0,0.2876]
[1732378163708,2.2784814,3464.2,3463.0,0.2876]
[1732378163903,0.02887088,3464.1,3463.0,0.2876]
[1732378165799,0.02887088,3464.5,3463.2,0.2876]
[1732378166013,1.48819439,3464.9,3463.6,0.2876]
[1732378166014,0.02887088,3464.8,3463.6,0.2876]
[1732378167045,2.2784814,3464.6,3463.6,0.2876]
[1732378167250,0.02887088,3464.5,3463.6,0.2876]
[1732378167445,0.02887088,3464.5,3463.5,0.1598]
[1732378167752,2.2784814,3464.6,3463.6,0.2876]
[1732378167935,0.02887088,3464.5,3463.6,0.2876]
[1732378168242,0.02887088,3464.8,3463.6,0.2876]
[1732378169112,0.02887088,3464.9,3463.6,0.2876]
[1732378170131,0.02887088,3464.9,3463.7,0.1598]
[1732378170456,2.2784814,3465.0,3463.7,0.1598]
[1732378170747,0.02887088,3465.3,3464.1,0.1598]
[1732378171304,2.2784814,3465.0,3464.1,0.1598]
[1732378171504,0.02887088,3464.9,3464.1,0.1598]
[1732378172814,0.02887088,3464.9,3463.0,0.31646846]
[1732378172815,2.2784814,3464.6,3463.7,0.1598]
[1732378173029,0.94657088,3464.5,3463.7,0.1598]
[1732378173207,3.94657088,3464.5,3463.7,0.1598]
[1732378173839,0.02887088,3464.5,3463.8,0.2876]
[1732378174141,2.2784814,3464.6,3463.8,0.2876]
[1732378174438,0.049038,3464.5,3463.8,0.2876]
[1732378174841,2.2784814,3464.2,3463.8,0.2876]
[1732378175305,0.049038,3464.5,3463.8,0.2876]
[1732378175957,3.9177,3464.1,3462.9,0.2876]
[1732378176106,2.2784814,3463.8,3462.9,0.2876]
[1732378176308,2.2784814,3463.4,3462.9,0.2876]
[1732378176807,3.9177,3463.3,3462.5,0.2876]
[1732378177565,2.2784814,3463.4,3462.5,0.2876]
[1732378178834,2.2784814,3463.8,3462.0,0.2876]
[1732378179048,2.2784814,3463.8,3462.4,0.2876]
[1732378179345,2.2784814,3464.2,3462.8,0.2876]
[1732378179543,5.2784814,3464.2,3463.0,0.2876]
[1732378180622,0.049038,3464.5,3463.0,0.2876]
[1732378180819,0.049038,3464.5,3463.4,0.2876]
[1732378181023,0.049038,3464.5,3463.6,0.2876]
[1732378181251,0.049038,3464.5,3463.8,0.2876]
[1732378181571,2.2784814,3465.0,3464.0,0.2876]
[1732378182041,2.6221754,3465.4,3464.2,0.2876]
[1732378183531,3.0,3465.3,3464.2,0.2876]
[1732378184872,2.2784814,3465.0,3464.2,0.2876]
[1732378188037,0.343694,3465.4,3463.5,0.1598]
[1732378188375,0.343694,3465.4,3464.0,0.2876]
[1732378188557,0.343694,3465.4,3464.2,0.2876]
[1732378190344,0.343694,3465.4,3463.9,0.1597]
[1732378190552,0.343694,3465.4,3464.2,0.2876]
[1732378190784,0.343694,3465.4,3464.4,0.2876]
[1732378191773,3.0,3465.5,3464.7,0.2876]
[1732378191979,2.2784814,3465.6,3464.7,0.2876]
[1732378192673,5.2784814,3465.6,3464.7,0.2876]
[1732378194475,2.2784814,3464.8,3464.3,0.2876]
[1732378194978,2.2784814,3464.4,3463.8,0.1597]
[1732378195182,5.2784814,3464.4,3463.8,0.1597]
[1732378195476,2.2784814,3464.4,3463.8,0.4473]
[1732378196434,2.2784814,3464.4,3463.8,0.2876]
[1732378197250,2.2784814,3464.8,3463.9,0.4473]
[1732378199284,3.55,3464.7,3463.9,0.4473]
[1732378199851,0.55,3464.7,3463.9,0.4473]
[1732378200281,2.2784814,3464.8,3463.9,0.4473]
[1732378200572,4.5021,3464.7,3463.9,0.4473]
[1732378200794,3.55,3464.7,3463.9,0.4473]
[1732378202559,2.2784814,3465.2,3463.3,0.2876]
[1732378202760,2.2784814,3465.2,3463.7,0.2876]
[1732378203055,2.2784814,3465.6,3464.3,0.2876]
[1732378203256,2.2784814,3465.6,3464.5,0.2876]
[1732378204846,0.55,3465.5,3464.5,0.2876]
[1732378205485,3.55,3465.5,3464.5,0.2876]
[1732378206890,2.2784814,3465.2,3464.5,0.2876]
[1732378207045,0.55,3465.1,3464.5,0.2876]
[1732378207449,3.55,3465.1,3464.5,0.2876]
[1732378209399,3.55,3465.1,3464.7,0.2876]
[1732378209696,3.55,3465.1,3464.9,0.2876]
[1732378209851,3.55,3465.1,3465.0,0.50271046]
[1732378210950,2.2784814,3465.2,3465.0,0.50271046]
[1732378211161,2.2784814,3465.2,3465.1,0.66241046]
[1732378212801,5.8284814,3465.2,3465.1,0.50271046]
[1732378213998,6.8145814,3465.2,3465.1,0.50271046]
[1732378214207,3.55,3465.1,3464.3,0.2876]
[1732378214375,0.55,3464.5,3464.3,0.2876]
[1732378214712,3.0,3464.5,3464.3,0.2876]
[1732378214873,2.2784814,3464.6,3464.3,0.2876]
[1732378218464,0.55,3464.9,3464.3,0.2876]
[1732378219278,1.90542439,3465.0,3464.3,0.2876]
[1732378220212,1.90542439,3465.0,3463.5,0.1]
[1732378220213,1.90542439,3465.0,3464.6,0.2876]
[1732378221521,0.55,3464.9,3464.6,0.2876]
[1732378222220,1.90542439,3465.0,3464.6,0.2876]
[1732378226205,1.90542439,3465.0,3464.8,0.2876]
[1732378226408,2.45542439,3465.0,3464.9,0.50289694]
[1732378227819,5.45542439,3465.0,3464.9,0.50289694]
[1732378227979,2.11140499,3465.8,3464.9,0.50289694]
[1732378228183,1.44965006,3466.0,3465.1,0.2876]
[1732378228381,0.28759945,3465.2,3464.2,0.03208384]
[1732378228612,0.28759945,3465.2,3464.3,0.21531856]
[1732378228777,0.28759945,3465.2,3464.4,0.21531856]
[1732378228979,0.28759945,3465.2,3464.5,0.21531856]
[1732378229219,0.28759945,3465.2,3464.6,0.21531856]
[1732378229425,0.28759945,3465.2,3464.2,0.03208384]
[1732378229426,0.28759945,3465.2,3464.7,0.21531856]
[1732378229722,0.28759945,3465.2,3464.8,0.21531856]
[1732378230013,0.28759945,3465.2,3464.2,0.03208384]
[1732378230014,0.28759945,3465.2,3464.9,0.21531856]
[1732378230316,0.55,3465.1,3465.0,0.21531856]
[1732378230518,2.45542439,3465.1,3465.0,0.21531856]
[1732378231020,5.45542439,3465.1,3465.0,0.21531856]
[1732378231518,5.45542439,3465.1,3464.2,0.03208384]
[1732378231683,1.90542439,3464.6,3464.2,0.03208384]
[1732378231883,0.55,3464.5,3464.2,0.03208384]
[1732378232082,0.28759945,3465.2,3464.2,0.03208384]
[1732378232083,1.90542439,3465.0,3464.2,0.03208384]
[1732378232727,0.28759945,3465.2,3464.2,0.03208384]
[1732378234342,3.0,3465.4,3464.2,0.03208384]
[1732378235051,0.55,3465.0,3464.2,0.03208384]
[1732378236044,0.55,3465.0,3464.3,0.34467899]
[1732378236250,0.55,3465.0,3464.4,0.34467899]
[1732378236451,0.55,3465.0,3464.2,0.03208384]
[1732378236452,3.55,3465.0,3464.5,0.34467899]
[1732378236611,0.55,3464.8,3464.6,0.34467899]
[1732378236810,0.55,3464.8,3464.2,0.03208384]
[1732378236811,0.55,3464.8,3464.7,0.34467899]
[1732378238526,0.55,3464.8,3464.7,0.77550545]
[1732378238734,0.55,3464.8,3464.2,0.03208384]
[1732378238926,0.55,3464.8,3464.7,0.3446497]
[1732378239238,0.55,3464.8,3464.7,1.06307277]
[1732378239436,0.55,3464.9,3464.7,1.06307277]
[1732378239754,0.55,3464.9,3464.8,1.06307277]
[1732378240955,3.0,3465.4,3464.8,1.06307277]
[1732378241159,3.0,3465.4,3465.0,0.2876]
[1732378241360,3.0,3465.4,3464.2,0.03208384]
[1732378241361,3.0,3465.4,3465.2,0.2876]
[1732378241560,3.0,3465.4,3465.3,1.06307277]
[1732378242267,3.55,3465.4,3465.3,1.06307277]
[1732378243265,3.55,3465.4,3465.3,0.63225456]
[1732378243870,0.28759944,3465.5,3465.3,0.63225456]
[1732378244033,0.28759978,3465.4,3464.2,0.03208384]
[1732378248253,0.55,3465.3,3464.2,0.03208384]
[1732378248560,0.28759978,3465.4,3464.2,0.03208384]
[1732378248770,0.28759978,3465.4,3464.2,0.02644777]
[1732378248945,0.28759978,3465.4,3464.1,0.02886116]
[1732378249150,0.57519922,3465.6,3464.2,0.2876]
[1732378249344,0.55,3465.5,3464.2,0.2876]
[1732378249539,0.55,3465.5,3464.2,0.77178537]
[1732378249852,0.57519922,3465.6,3464.4,0.2876]
[1732378250056,0.57519922,3465.6,3464.6,0.2876]
[1732378250262,0.57519922,3465.6,3464.8,0.2876]
[1732378250430,0.57519922,3465.6,3465.0,0.2876]
[1732378251449,0.57519922,3465.6,3464.6,0.2876]
[1732378252555,0.57519922,3465.6,3464.7,0.2876]
[1732378253234,0.55,3465.5,3464.7,0.2876]
[1732378253544,0.55,3465.5,3464.3,0.2876]
[1732378254267,0.57519922,3465.6,3464.3,0.2876]
[1732378254970,0.57519922,3465.6,3464.4,0.02885905]
[1732378255179,0.57519922,3465.6,3464.3,0.2876]
[1732378256203,0.55,3465.5,3464.3,0.2876]
[1732378256836,1.90428992,3465.3,3464.3,0.2876]
[1732378257044,1.0132,3465.1,3464.3,0.2876]
[1732378257842,0.55,3465.0,3464.3,0.2876]
[1732378262845,0.55,3464.8,3464.3,0.2876]
[1732378263150,1.90428992,3464.5,3464.3,0.2876]
[1732378263949,2.45428992,3464.5,3464.4,0.2876]
[1732378264358,0.57519922,3464.4,3462.9,0.02886974]
[1732378264558,0.57519922,3464.4,3462.9,0.23218571]
[1732378265173,0.57519922,3464.4,3463.0,0.2875]
[1732378265341,0.55,3464.3,3463.0,0.2875]
[1732378265536,0.55,3464.0,3463.0,0.2875]
[1732378265944,0.55,3464.0,3463.1,0.2875]
[1732378266345,0.55,3463.6,3463.1,0.2875]
[1732378266949,0.55,3463.6,3463.2,0.2875]
[1732378267154,1.90428992,3463.7,3463.2,0.2875]
[1732378267592,0.2,3465.1,3463.2,0.2875]
[1732378267593,0.9281,3464.2,3463.2,0.2875]
[1732378267943,0.9281,3464.8,3462.8,0.2875]
[1732378268150,0.9281,3464.8,3463.3,0.2875]
[1732378268377,1.90428992,3465.3,3463.3,0.2875]
[1732378268547,0.9281,3465.2,3463.3,0.2875]
[1732378269483,1.90428992,3464.9,3463.3,0.2875]
[1732378269977,3.0,3465.1,3463.4,0.02886838]
[1732378270174,0.9281,3465.2,3463.4,0.02886838]
[1732378270175,3.9281,3465.2,3463.4,0.02886838]
[1732378270844,1.90428992,3465.3,3463.4,0.02886838]
[1732378271045,4.90428992,3465.3,3463.5,0.37697204]
[1732378272097,4.90428992,3465.3,3463.5,0.40583696]
[1732378272662,0.14146883,3464.4,3463.6,3.1]
[1732378272868,2.83238992,3465.7,3463.7,0.02886152]
[1732378273100,0.9281,3465.7,3463.9,1.90428992]
[1732378273409,0.9281,3466.0,3464.0,0.02885964]
[1732378273703,0.9281,3466.0,3464.1,0.54865016]
[1732378273902,0.9281,3466.0,3464.2,0.02885963]
[1732378274404,2.33453714,3466.3,3464.3,1.90428992]
[1732378274592,2.33453714,3466.3,3464.4,0.02885654]
[1732378277010,0.9281,3466.3,3464.4,0.48220858]
[1732378277693,2.33453714,3466.3,3464.4,0.02885654]
[1732378277907,2.33453714,3466.3,3464.5,0.02885599]
[1732378278784,2.31326174,3466.3,3464.6,0.049656]
[1732378279016,2.30808937,3466.3,3464.7,0.0301]
[1732378279193,2.3024533,3466.3,3464.7,0.0301]
[1732378279780,5.03868915,3466.2,3464.7,0.0301]
[1732378280083,2.03868915,3466.2,3464.7,0.0301]
[1732378280508,5.03868915,3466.2,3464.7,0.0301]
[1732378284286,3.55,3466.2,3464.7,0.0301]
[1732378284606,0.55,3466.2,3464.7,0.0301]
[1732378286070,0.55,3466.3,3464.7,0.0301]
[1732378286543,0.55,3466.4,3464.7,0.0301]
[1732378290404,1.45979412,3466.6,3464.9,0.2875]
[1732378290604,1.45979412,3466.6,3465.2,0.0358]
[1732378290783,1.45979412,3466.6,3465.4,0.2875]
[1732378291118,1.45979412,3466.6,3465.7,0.0358]
[1732378291287,3.3782024,3466.5,3465.7,0.0358]
[1732378291815,3.3782024,3466.5,3465.8,0.21417046]
[1732378292115,3.3782024,3466.5,3465.9,2.6e-07]
[1732378292283,3.3782024,3466.5,3465.7,0.0358]
[1732378295323,0.08,3466.7,3466.1,0.0358]
[1732378297693,1.41049671,3466.5,3466.1,0.0358]
[1732378297909,0.55,3466.4,3466.1,0.0358]
[1732378298527,0.58606206,3466.4,3466.1,0.0358]
[1732378299392,0.55,3466.4,3466.1,0.0358]
[1732378299604,0.55,3466.2,3466.1,0.0358]
[1732378299891,0.55,3466.3,3465.4,0.0358]
[1732378300223,0.55,3466.1,3465.4,0.0358]
[1732378300432,0.55,3465.9,3465.4,0.0358]
[1732378302306,0.55,3465.9,3465.4,0.05023965]
[1732378302511,0.55,3465.9,3465.4,0.01443591]
[1732378302707,0.55,3465.9,3465.5,0.0358]
[1732378303226,1.40380866,3466.6,3465.5,0.0358]
[1732378303385,1.40380866,3466.6,3465.5,0.01443248]
[1732378303590,1.40380866,3466.6,3465.6,0.0358]
[1732378303820,1.40380866,3466.6,3465.7,0.01442804]
[1732378303987,1.51465562,3466.7,3465.8,0.0358]
[1732378304528,0.55,3466.6,3465.8,0.0502244]
[1732378304730,1.51465562,3466.7,3465.9,0.0358]
[1732378306024,0.55,3466.6,3465.9,0.0358]
[1732378306524,0.55,3466.4,3465.9,0.0358]
[1732378306893,0.55,3466.5,3465.9,0.0358]
[1732378307799,0.55,3466.6,3465.9,0.0358]
[1732378316929,0.55,3466.4,3465.9,0.0358]
[1732378317502,0.55,3466.5,3465.9,0.0358]
[1732378317743,0.55,3466.3,3465.9,0.0358]
[1732378318402,1.0892,3466.7,3465.3,0.2875]
[1732378318403,0.55,3466.1,3465.4,0.0428]
[1732378319810,0.55,3465.9,3465.4,0.0428]
[1732378320021,0.55,3465.7,3465.3,0.2875]
[1732378321311,0.55,3465.5,3465.3,0.2875]
[1732378321523,0.5860757,3465.4,3465.3,0.2875]
[1732378321740,1.5952757,3465.4,3465.3,0.2875]
[1732378322311,1.5592,3465.4,3465.3,0.2875]
[1732378322512,0.55,3465.4,3465.3,0.2875]
[1732378322744,0.55,3465.9,3465.3,0.2875]
[1732378322917,1.0092,3466.0,3465.3,0.3303]
[1732378323111,0.03607124,3465.9,3465.3,0.3303]
[1732378323962,1.0092,3466.0,3465.3,0.3303]
[1732378324351,0.03606949,3465.9,3465.3,0.3303]
[1732378324556,1.0092,3466.3,3465.3,0.3303]
[1732378324741,0.03606949,3466.2,3465.3,0.3303]
[1732378325141,0.55,3466.1,3465.3,0.3303]
[1732378325384,0.55,3465.9,3465.3,0.3303]
[1732378325683,0.03606948,3465.8,3465.3,0.3303]
[1732378325894,0.55,3466.1,3465.3,0.3303]
[1732378326246,0.55,3465.9,3465.3,0.3303]
[1732378326575,0.55,3465.7,3465.3,0.3303]
[1732378327663,0.55,3465.7,3465.3,0.2875]
[1732378327851,0.55,3465.5,3465.3,0.2875]
[1732378328057,0.58607338,3465.4,3465.3,0.2875]
[1732378329185,0.55,3465.3,3464.8,0.2875]
[1732378329553,0.55,3465.1,3464.8,0.2875]
[1732378329947,0.55,3465.4,3464.8,0.2875]
[1732378330150,0.55,3465.4,3464.9,0.2875]
[1732378330151,0.55,3465.0,3464.9,0.2875]
[1732378330345,0.58608033,3465.0,3464.9,0.2875]
[1732378330844,3.58608033,3465.0,3464.9,0.2875]
[1732378331777,3.55,3465.0,3464.9,0.2875]
[1732378332026,0.55,3465.0,3464.9,0.2875]
[1732378332186,1.0068,3465.5,3464.9,0.2875]
[1732378332489,0.03607474,3465.4,3464.9,0.2875]
[1732378333070,2.94716466,3465.9,3464.9,0.2875]
[1732378333378,0.03607297,3465.8,3464.7,0.0428]
[1732378333747,1.90428992,3465.5,3464.7,0.0428]
[1732378333952,0.03607298,3465.4,3464.7,0.0428]
[1732378334388,0.55,3465.3,3464.7,0.0428]
[1732378335508,0.55,3465.4,3464.7,0.0428]
[1732378336156,0.586073,3465.4,3464.7,0.0428]
[1732378336358,0.55,3465.4,3464.7,0.0428]
[1732378337793,0.03607038,3465.7,3464.7,0.0428]
[1732378338352,0.03606948,3465.8,3464.7,0.0428]
[1732378338800,4.0068,3466.2,3464.7,0.0428]
[1732378338973,2.90428992,3466.3,3464.8,0.01443731]
[1732378339294,0.03606649,3466.2,3464.8,0.01443731]
[1732378339696,0.03606649,3466.2,3464.4,0.11443545]
[1732378339895,0.03606649,3466.2,3464.5,0.26612782]
[1732378340110,0.03606649,3466.2,3464.5,0.28056535]
[1732378340111,1.90428992,3465.9,3464.5,0.28056535]
[1732378340403,1.90428992,3465.9,3463.9,0.40194684]
[1732378340404,0.55,3465.7,3463.9,0.40194684]
[1732378340602,0.55,3465.5,3463.9,0.40194684]
[1732378340759,0.55,3465.3,3463.9,0.2875]
[1732378340961,0.55,3465.3,3464.0,0.01445045]
[1732378341269,0.55,3465.6,3463.9,0.2875]
[1732378341591,0.55,3465.4,3463.9,0.2875]
[1732378341897,0.55,3465.4,3464.0,0.01445042]
[1732378342101,0.55,3465.7,3464.0,0.01445042]
[1732378342472,0.55,3465.7,3464.0,0.11445042]
[1732378342663,0.58607054,3465.7,3464.1,0.23062403]
[1732378342962,0.55,3465.5,3464.1,0.23062403]
[1732378343571,0.03607338,3465.4,3463.9,0.2875]
[1732378343872,0.55,3465.3,3464.0,0.2875]
[1732378344073,0.55,3465.1,3464.0,0.2875]
[1732378344409,0.03607789,3465.0,3464.0,0.2875]
[1732378344862,0.03607789,3465.0,3463.5,0.01446025]
[1732378345989,0.55,3464.9,3463.5,0.01446025]
[1732378352122,0.55,3465.0,3463.5,0.01446025]
[1732378352326,0.55,3465.3,3463.7,0.2875]
[1732378352515,0.03607781,3465.2,3463.8,0.01445995]
[1732378352715,0.55,3465.1,3463.8,0.01445995]
[1732378352932,0.03607763,3465.0,3463.8,0.01445995]
[1732378353112,0.55,3465.1,3463.7,0.30195958]
[1732378353313,1.3825,3464.9,3463.7,0.2875]
[1732378353652,1.3825,3464.9,3463.6,0.28454589]
[1732378353653,0.03607995,3464.8,3463.8,0.2875]
[1732378353861,0.55,3464.7,3463.8,0.2875]
[1732378354178,0.55,3464.5,3463.8,0.2875]
[1732378354369,0.55,3464.3,3463.8,0.2875]
[1732378354571,0.55,3464.1,3463.4,0.2875]
[1732378354774,0.55,3464.3,3463.4,0.2875]
[1732378355069,0.55,3464.1,3463.4,0.2875]
[1732378355271,0.55,3463.9,3463.4,0.2875]
[1732378355431,0.55,3463.7,3463.4,0.2875]
[1732378355764,0.55,3463.5,3463.4,0.2875]
[1732378356833,0.58609404,3463.5,3463.4,0.2875]
[1732378357037,0.55,3463.5,3463.4,0.2875]
[1732378357378,0.58609428,3463.5,3463.4,0.2875]
[1732378357542,0.55,3463.5,3463.4,0.2875]
[1732378358148,0.55,3463.8,3463.4,0.2875]
[1732378358345,0.58609422,3463.8,3463.4,0.2875]
[1732378359774,0.55,3463.8,3463.4,0.2875]
[1732378359978,0.55,3464.1,3463.4,0.2875]
[1732378360149,0.03608998,3464.0,3463.4,0.2875]
[1732378360351,0.55,3463.9,3463.4,0.2875]
[1732378360577,0.55,3463.7,3463.4,0.2875]
[1732378361292,3.027,3466.9,3463.4,0.2875]
[1732378361293,2.73678992,3465.0,3463.5,0.01448051]
[1732378361447,2.73678992,3465.0,3463.4,0.3019681]
[1732378361448,0.03608189,3464.9,3463.4,0.3019681]
[1732378361647,0.30976088,3464.9,3463.4,0.3019681]
[1732378361853,0.8325,3465.0,3463.4,0.3019681]
[1732378362191,0.8325,3465.3,3463.4,2.20625802]
[1732378362348,1.90428992,3465.4,3463.4,2.20625802]
[1732378362349,0.03607715,3465.2,3463.6,0.2875]
[1732378362551,0.03607493,3465.6,3463.7,0.01445419]
[1732378363095,0.8325,3465.7,3463.9,0.2875]
[1732378363249,0.03607359,3465.6,3464.1,0.2875]
[1732378363566,0.94857359,3466.0,3464.3,0.2875]
[1732378363777,0.08,3466.0,3464.5,0.2875]
[1732378363949,0.08,3466.0,3464.4,0.23506814]
[1732378363950,0.08,3466.0,3464.4,1.90428992]
[1732378364150,0.08,3466.0,3464.4,0.21393581]
[1732378364458,0.08,3466.0,3464.0,2.00428992]
[1732378364873,0.08,3466.0,3464.1,0.2875]
[1732378365179,0.58606978,3465.9,3464.1,0.2875]
[1732378365550,0.55,3465.9,3464.3,0.2875]
[1732378365775,0.55,3465.9,3464.5,0.2875]
[1732378366053,0.08,3466.0,3465.1,0.2875]
[1732378366282,0.8457,3466.8,3465.3,0.2875]
[1732378366745,0.03606216,3466.7,3465.3,0.2875]
[1732378367478,0.08,3466.8,3465.3,0.2875]
[1732378367681,0.08,3467.0,3465.3,0.2875]
[1732378367852,0.08,3467.0,3466.1,0.2875]
[1732378368056,0.11606023,3467.1,3466.1,0.2875]
[1732378368567,0.08,3467.1,3466.1,0.2875]
[1732378368769,0.11009764,3467.1,3466.0,1.0]
[1732378369162,0.0740399,3467.1,3466.0,1.0]
[1732378369565,0.03606009,3467.0,3466.0,1.0]
[1732378369866,0.7657,3466.9,3466.0,1.0]
[1732378370064,0.03606019,3466.8,3466.0,1.0]
[1732378370384,0.55,3466.7,3466.0,1.0]
[1732378370695,0.55,3466.5,3466.0,1.0]
[1732378371689,0.55,3466.8,3466.0,1.0]
[1732378371888,0.55,3466.6,3466.0,1.0]
[1732378372249,0.0740399,3467.1,3466.0,1.0]
[1732378373556,0.55,3467.0,3466.0,1.0]
[1732378373758,0.55,3466.8,3466.0,1.0]
[1732378374388,0.55,3467.0,3466.0,1.0]
[1732378374592,0.03605733,3466.9,3466.0,1.0]
[1732378374761,0.55,3466.8,3466.0,1.0]
[1732378375856,0.55,3466.6,3466.0,1.0]
[1732378376094,0.03606026,3466.5,3466.0,1.0]
[1732378376263,0.55,3466.4,3466.0,1.0]
[1732378376484,0.55,3466.2,3466.0,1.0]
[1732378376781,0.55,3466.4,3466.0,1.0]
[1732378376976,0.58606519,3466.4,3466.0,1.0]
[1732378377311,0.55,3466.2,3466.0,1.0]
[1732378377499,0.03606541,3466.1,3466.0,1.0]
[1732378377678,0.55,3466.2,3466.0,1.0]
[1732378377880,0.5860652,3466.1,3466.0,1.0]
[1732378379285,0.55,3466.4,3466.0,1.0]
[1732378379492,3.55,3466.4,3466.0,1.0]
[1732378379666,0.55,3466.5,3466.0,1.0]
[1732378380373,0.58606443,3466.5,3466.0,1.0]
[1732378381279,0.55,3466.5,3466.0,1.0]
[1732378381607,0.55,3466.3,3466.0,1.0]
[1732378381913,0.55,3466.1,3466.0,1.0]
[1732378382129,0.55,3466.3,3466.0,1.0]
[1732378382401,0.80176499,3467.1,3466.0,1.0]
[1732378382569,0.7657,3467.1,3466.0,1.0]
[1732378383166,0.0360575,3467.0,3466.0,1.0]
[1732378383372,0.7657,3467.1,3466.0,1.0]